[Event "Late-Titled-Tuesday-Blitz-June-18-2024"]
[Site "Chess.com"]
[Date "2024.06.18"]
[Round "3"]
[White "Oleksandr_Bortnyk"]
[Black "nindjaxx8"]
[Result "1-0"]
[WhiteElo "3057"]
[BlackElo "2735"]
[TimeControl "180+1"]
[EndTime "14:30:21 PDT"]
[Termination "Oleksandr_Bortnyk won by resignation"]

1. e4 {[%clk 0:03:00.9]} 1... e6 {[%clk 0:02:58]} 2. Nf3 {[%clk 0:03:00.5]} 2...
d5 {[%clk 0:02:55.1]} 3. e5 {[%clk 0:03:01]} 3... c5 {[%clk 0:02:49.6]} 4. d4
{[%clk 0:03:00.7]} 4... Nc6 {[%clk 0:02:49.1]} 5. Bd3 {[%clk 0:03:00.4]} 5...
Qb6 {[%clk 0:02:38.5]} 6. O-O {[%clk 0:03:00.4]} 6... cxd4 {[%clk 0:02:19.2]} 7.
Nbd2 {[%clk 0:02:59.3]} 7... Nge7 {[%clk 0:02:18.9]} 8. Nb3 {[%clk 0:02:59.4]}
8... Ng6 {[%clk 0:02:18.3]} 9. Re1 {[%clk 0:02:59.8]} 9... Bb4 {[%clk
0:02:15.1]} 10. Re2 {[%clk 0:02:59.7]} 10... Bd7 {[%clk 0:02:12.2]} 11. h4
{[%clk 0:02:57.7]} 11... Be7 {[%clk 0:02:11.2]} 12. h5 {[%clk 0:02:58]} 12...
Nh4 {[%clk 0:02:09.5]} 13. Nxh4 {[%clk 0:02:53.8]} 13... Bxh4 {[%clk 0:02:09.1]}
14. Bf4 {[%clk 0:02:54.7]} 14... Be7 {[%clk 0:02:06.9]} 15. a4 {[%clk
0:02:53.5]} 15... a5 {[%clk 0:02:05.9]} 16. Bb5 {[%clk 0:02:46.4]} 16... O-O-O
{[%clk 0:01:59.7]} 17. Rd2 {[%clk 0:02:40.9]} 17... Rdg8 {[%clk 0:01:24.9]} 18.
Nxd4 {[%clk 0:02:35.8]} 18... h6 {[%clk 0:01:10.7]} 19. c4 {[%clk 0:02:30.9]}
19... dxc4 {[%clk 0:01:05.5]} 20. Rc1 {[%clk 0:02:21.1]} 20... Bb4 {[%clk
0:00:59]} 21. Nxc6 {[%clk 0:02:12.9]} 21... Bxc6 {[%clk 0:00:59.1]} 22. Rd4
{[%clk 0:01:56.7]} 22... Rd8 {[%clk 0:00:58.5]} 23. Be3 {[%clk 0:01:40.2]} 23...
Bc5 {[%clk 0:00:43.3]} 24. Rcxc4 {[%clk 0:01:34.7]} 24... Bxd4 {[%clk 0:00:38]}
25. Bxd4 {[%clk 0:01:35.6]} 25... Rxd4 {[%clk 0:00:24.6]} 26. Rxd4 {[%clk
0:01:36.5]} 26... Bxb5 {[%clk 0:00:24.3]} 27. axb5 {[%clk 0:01:37.4]} 27... Rd8
{[%clk 0:00:24.2]} 28. Rxd8+ {[%clk 0:01:12.6]} 28... Qxd8 {[%clk 0:00:25.1]}
29. Qg4 {[%clk 0:01:12.8]} 29... Qf8 {[%clk 0:00:03.3]} 30. b6 {[%clk
0:01:07.9]} 30... Qb4 {[%clk 0:00:01.2]} 31. Qxg7 {[%clk 0:01:05.9]} 31... Qe1+
{[%clk 0:00:01.5]} 32. Kh2 {[%clk 0:01:06.2]} 32... Qxf2 {[%clk 0:00:02]} 33.
Qf8+ {[%clk 0:01:05.3]} 33... Kd7 {[%clk 0:00:02]} 34. Qd6+ {[%clk 0:01:06.2]}
34... Ke8 {[%clk 0:00:02.2]} 35. Qb8+ {[%clk 0:01:06]} 35... Ke7 {[%clk
0:00:02.9]} 36. Qd6+ {[%clk 0:01:06.2]} 36... Ke8 {[%clk 0:00:02.9]} 37. Qb8+
{[%clk 0:01:07.1]} 37... Ke7 {[%clk 0:00:03.6]} 38. Qxb7+ {[%clk 0:01:08]} 38...
Kf8 {[%clk 0:00:04.3]} 39. Kh3 {[%clk 0:00:44.3]} 39... Qe3+ {[%clk 0:00:04.2]}
40. g3 {[%clk 0:00:43.6]} 40... Qc1 {[%clk 0:00:03.6]} 41. b3 {[%clk 0:00:30.3]}
41... Qd1 {[%clk 0:00:03.6]} 42. Qe4 {[%clk 0:00:24.3]} 42... Qxh5+ {[%clk
0:00:02.4]} 43. Kg2 {[%clk 0:00:24.5]} 43... Qd1 {[%clk 0:00:02.5]} 44. Qe3
{[%clk 0:00:14.9]} 44... Qc2+ {[%clk 0:00:02.6]} 45. Kh3 {[%clk 0:00:15]} 45...
Qc6 {[%clk 0:00:01.7]} 46. Qxh6+ {[%clk 0:00:14.1]} 46... Ke7 {[%clk 0:00:01.4]}
47. Qf6+ {[%clk 0:00:14.3]} 47... Ke8 {[%clk 0:00:01.8]} 48. Qh8+ {[%clk
0:00:13.9]} 48... Ke7 {[%clk 0:00:02]} 49. Qh4+ {[%clk 0:00:14.7]} 49... Ke8
{[%clk 0:00:02.4]} 50. Qd4 {[%clk 0:00:15.6]} 50... Qh1+ {[%clk 0:00:02.3]} 51.
Kg4 {[%clk 0:00:16.3]} 51... Qc6 {[%clk 0:00:02.6]} 52. Kg5 {[%clk 0:00:16.1]}
52... Ke7 {[%clk 0:00:02.3]} 53. g4 {[%clk 0:00:07.6]} 53... Ke8 {[%clk
0:00:01.3]} 54. Kf6 {[%clk 0:00:02.8]} 54... Qf3+ {[%clk 0:00:01.2]} 55. Kg7
{[%clk 0:00:03.6]} 55... Qf4 {[%clk 0:00:01]} 56. Qxf4 {[%clk 0:00:03.7]} 1-0

[Event "Late-Titled-Tuesday-Blitz-June-18-2024"]
[Site "Chess.com"]
[Date "2024.06.18"]
[Round "3"]
[White "familijatop71"]
[Black "GianmarcoVaR"]
[Result "0-1"]
[WhiteElo "2301"]
[BlackElo "2702"]
[TimeControl "180+1"]
[EndTime "14:30:22 PDT"]
[Termination "GianmarcoVaR won by checkmate"]

1. e4 {[%clk 0:03:00.9]} 1... g6 {[%clk 0:02:58.9]} 2. d4 {[%clk 0:02:56.1]}
2... Bg7 {[%clk 0:02:59]} 3. Nc3 {[%clk 0:02:56]} 3... d6 {[%clk 0:02:50.1]} 4.
f4 {[%clk 0:02:54.4]} 4... Nf6 {[%clk 0:02:49.7]} 5. Nf3 {[%clk 0:02:54.1]} 5...
O-O {[%clk 0:02:48.7]} 6. e5 {[%clk 0:02:54]} 6... dxe5 {[%clk 0:02:17.1]} 7.
fxe5 {[%clk 0:02:54.9]} 7... Nd5 {[%clk 0:02:16.7]} 8. Bc4 {[%clk 0:02:55.3]}
8... c6 {[%clk 0:01:38.9]} 9. O-O {[%clk 0:02:43.8]} 9... f6 {[%clk 0:01:17.9]}
10. Qe2 {[%clk 0:02:08.2]} 10... a5 {[%clk 0:01:03.3]} 11. Ne4 {[%clk
0:01:43.2]} 11... Na6 {[%clk 0:00:59.7]} 12. c3 {[%clk 0:01:32.6]} 12... Nc7
{[%clk 0:00:54.4]} 13. a4 {[%clk 0:01:19.2]} 13... b6 {[%clk 0:00:35.1]} 14. Bd2
{[%clk 0:01:16.2]} 14... Ba6 {[%clk 0:00:31.9]} 15. Bxa6 {[%clk 0:01:11.5]}
15... Nxa6 {[%clk 0:00:32.3]} 16. Rad1 {[%clk 0:01:04.4]} 16... Nac7 {[%clk
0:00:29.7]} 17. c4 {[%clk 0:01:00.7]} 17... Nb4 {[%clk 0:00:28.8]} 18. Bxb4
{[%clk 0:00:59.8]} 18... axb4 {[%clk 0:00:29.4]} 19. b3 {[%clk 0:00:46]} 19...
f5 {[%clk 0:00:24.2]} 20. Ng3 {[%clk 0:00:34.5]} 20... e6 {[%clk 0:00:24.8]} 21.
Qd2 {[%clk 0:00:27.6]} 21... Qe7 {[%clk 0:00:25]} 22. Qg5 {[%clk 0:00:20.3]}
22... Rfe8 {[%clk 0:00:08.4]} 23. Qxe7 {[%clk 0:00:20]} 23... Rxe7 {[%clk
0:00:09.3]} 24. Ne2 {[%clk 0:00:18.7]} 24... Bh6 {[%clk 0:00:09.4]} 25. Kh1
{[%clk 0:00:15.8]} 25... Rd7 {[%clk 0:00:06.5]} 26. g3 {[%clk 0:00:15.6]} 26...
g5 {[%clk 0:00:04.2]} 27. Kg2 {[%clk 0:00:14.9]} 27... g4 {[%clk 0:00:04.2]} 28.
Nh4 {[%clk 0:00:12.9]} 28... Bg5 {[%clk 0:00:04.5]} 29. Nf4 {[%clk 0:00:12.6]}
29... Bxh4 {[%clk 0:00:03.6]} 30. gxh4 {[%clk 0:00:13.1]} 30... Rad8 {[%clk
0:00:04.4]} 31. Ne2 {[%clk 0:00:12.6]} 31... Kg7 {[%clk 0:00:03.9]} 32. h3
{[%clk 0:00:13.1]} 32... h5 {[%clk 0:00:03.7]} 33. hxg4 {[%clk 0:00:13.1]} 33...
hxg4 {[%clk 0:00:04]} 34. Rf4 {[%clk 0:00:12.7]} 34... Kg6 {[%clk 0:00:03.7]}
35. Ng3 {[%clk 0:00:12.5]} 35... Ne8 {[%clk 0:00:02.9]} 36. Kf2 {[%clk
0:00:12.1]} 36... Ng7 {[%clk 0:00:03.4]} 37. Ke3 {[%clk 0:00:10.9]} 37... Rh8
{[%clk 0:00:03.1]} 38. Rh1 {[%clk 0:00:10.1]} 38... Rhd8 {[%clk 0:00:02.3]} 39.
Rd1 {[%clk 0:00:09.7]} 39... Nh5 {[%clk 0:00:02.5]} 40. Nxh5 {[%clk 0:00:09.3]}
40... Kxh5 {[%clk 0:00:03.4]} 41. Rh1 {[%clk 0:00:09.3]} 41... Rg8 {[%clk
0:00:02.2]} 42. Rff1 {[%clk 0:00:07.1]} 42... g3 {[%clk 0:00:02.4]} 43. Rf4
{[%clk 0:00:03.9]} 43... Rg4 {[%clk 0:00:02.4]} 44. Rxg4 {[%clk 0:00:03.6]}
44... Kxg4 {[%clk 0:00:03]} 45. h5 {[%clk 0:00:04.2]} 45... f4+ {[%clk
0:00:03.6]} 46. Ke4 {[%clk 0:00:03.9]} 46... f3 {[%clk 0:00:03.6]} 47. h6 {[%clk
0:00:04.3]} 47... g2 {[%clk 0:00:03.9]} 48. Rg1 {[%clk 0:00:04.2]} 48... Kg3
{[%clk 0:00:04.1]} 49. d5 {[%clk 0:00:02.3]} 49... cxd5+ {[%clk 0:00:04]} 50.
cxd5 {[%clk 0:00:02.6]} 50... exd5+ {[%clk 0:00:04.8]} 51. Kd4 {[%clk
0:00:02.5]} 51... f2 {[%clk 0:00:05]} 52. e6 {[%clk 0:00:02.4]} 52... fxg1=Q+
{[%clk 0:00:05.3]} 53. Ke5 {[%clk 0:00:02]} 53... Qe3+ {[%clk 0:00:05.9]} 54.
Kf6 {[%clk 0:00:01.8]} 54... Qxh6+ {[%clk 0:00:06.7]} 55. Ke5 {[%clk 0:00:01.8]}
55... Qf4# {[%clk 0:00:07.4]} 0-1

[Event "Late-Titled-Tuesday-Blitz-June-18-2024"]
[Site "Chess.com"]
[Date "2024.06.18"]
[Round "3"]
[White "Sondremelaa"]
[Black "SharathRk6"]
[Result "0-1"]
[WhiteElo "2616"]
[BlackElo "2452"]
[TimeControl "180+1"]
[EndTime "14:30:22 PDT"]
[Termination "SharathRk6 won by resignation"]

1. e4 {[%clk 0:03:00.9]} 1... e5 {[%clk 0:02:58]} 2. Nf3 {[%clk 0:03:01.2]} 2...
Nc6 {[%clk 0:02:57.4]} 3. Bc4 {[%clk 0:03:01.7]} 3... Bc5 {[%clk 0:02:56.8]} 4.
c3 {[%clk 0:03:01.4]} 4... Nf6 {[%clk 0:02:56.6]} 5. d3 {[%clk 0:03:01.9]} 5...
d6 {[%clk 0:02:55.9]} 6. O-O {[%clk 0:03:02.1]} 6... O-O {[%clk 0:02:55.7]} 7.
h3 {[%clk 0:02:58.7]} 7... a6 {[%clk 0:02:54.1]} 8. a4 {[%clk 0:02:58.4]} 8...
h6 {[%clk 0:02:52]} 9. Re1 {[%clk 0:02:58.2]} 9... Be6 {[%clk 0:02:47.2]} 10.
Bxe6 {[%clk 0:02:56.7]} 10... fxe6 {[%clk 0:02:45.5]} 11. b4 {[%clk 0:02:57.4]}
11... Ba7 {[%clk 0:02:44.8]} 12. Nbd2 {[%clk 0:02:57]} 12... d5 {[%clk
0:02:40.9]} 13. b5 {[%clk 0:02:46.9]} 13... axb5 {[%clk 0:02:29.1]} 14. axb5
{[%clk 0:02:45.2]} 14... Bxf2+ {[%clk 0:02:23.4]} 15. Kxf2 {[%clk 0:02:43.2]}
15... Rxa1 {[%clk 0:02:23.9]} 16. bxc6 {[%clk 0:02:43.7]} 16... bxc6 {[%clk
0:02:22.3]} 17. Qc2 {[%clk 0:02:32.9]} 17... Qa8 {[%clk 0:02:10.7]} 18. Bb2
{[%clk 0:02:29]} 18... Ra2 {[%clk 0:02:07.8]} 19. Rb1 {[%clk 0:01:54.9]} 19...
Qa7+ {[%clk 0:01:59.7]} 20. Kf1 {[%clk 0:01:42.3]} 20... Qa6 {[%clk 0:01:48]}
21. c4 {[%clk 0:01:17.9]} 21... Rb8 {[%clk 0:01:41.9]} 22. Qc1 {[%clk
0:01:17.6]} 22... d4 {[%clk 0:01:10.1]} 23. Nxe5 {[%clk 0:01:08.4]} 23... Nh5
{[%clk 0:01:01.5]} 24. Nef3 {[%clk 0:00:57.5]} 24... c5 {[%clk 0:00:54.8]} 25.
Bxd4 {[%clk 0:00:19.6]} 25... Rxb1 {[%clk 0:00:52.4]} 26. Qxb1 {[%clk
0:00:20.5]} 26... cxd4 {[%clk 0:00:50.8]} 27. Qb8+ {[%clk 0:00:21.1]} 27... Kh7
{[%clk 0:00:50.7]} 28. Qxc7 {[%clk 0:00:21.6]} 28... Ra1+ {[%clk 0:00:42.2]} 29.
Kf2 {[%clk 0:00:20.6]} 29... Qa3 {[%clk 0:00:30.6]} 30. Qe5 {[%clk 0:00:15.1]}
30... Nf6 {[%clk 0:00:25.3]} 31. Qxd4 {[%clk 0:00:13.9]} 31... Qc1 {[%clk
0:00:20.3]} 32. Qe3 {[%clk 0:00:12]} 32... Ra2 {[%clk 0:00:19.4]} 33. Kg3 {[%clk
0:00:10.9]} 33... Nh5+ {[%clk 0:00:17.9]} 34. Kf2 {[%clk 0:00:06.3]} 34... e5
{[%clk 0:00:17.6]} 35. c5 {[%clk 0:00:04.7]} 35... Nf4 {[%clk 0:00:17.7]} 36. c6
{[%clk 0:00:02.5]} 36... Qxc6 {[%clk 0:00:16.4]} 37. Nxe5 {[%clk 0:00:02.9]}
37... Qf6 {[%clk 0:00:13.5]} 38. Nf3 {[%clk 0:00:02.8]} 38... Ne6 {[%clk
0:00:12.9]} 39. d4 {[%clk 0:00:02.7]} 39... Nxd4 {[%clk 0:00:12.1]} 40. Qxd4
{[%clk 0:00:01.9]} 40... Qxd4+ {[%clk 0:00:12.5]} 41. Nxd4 {[%clk 0:00:02.3]}
41... Rxd2+ {[%clk 0:00:12.8]} 42. Ke3 {[%clk 0:00:03]} 42... Rxg2 {[%clk
0:00:13]} 43. e5 {[%clk 0:00:03.8]} 43... Rg3+ {[%clk 0:00:13]} 44. Kf4 {[%clk
0:00:03.2]} 44... Rxh3 {[%clk 0:00:13.6]} 45. e6 {[%clk 0:00:03.9]} 45... Rh4+
{[%clk 0:00:13.1]} 46. Ke5 {[%clk 0:00:04]} 46... Rxd4 {[%clk 0:00:12.9]} 47.
Kxd4 {[%clk 0:00:03.7]} 47... Kg8 {[%clk 0:00:13.6]} 48. Ke5 {[%clk 0:00:02.4]}
48... Kf8 {[%clk 0:00:14.3]} 49. Kd6 {[%clk 0:00:02.4]} 49... Ke8 {[%clk
0:00:14.9]} 50. Ke5 {[%clk 0:00:02.8]} 50... Ke7 {[%clk 0:00:14.9]} 51. Kf5
{[%clk 0:00:03.3]} 51... h5 {[%clk 0:00:15]} 52. Kg5 {[%clk 0:00:02.4]} 52... g6
{[%clk 0:00:15]} 53. Kh4 {[%clk 0:00:01.5]} 53... Kxe6 {[%clk 0:00:15]} 54. Kg5
{[%clk 0:00:02.4]} 54... Ke5 {[%clk 0:00:15.5]} 55. Kh4 {[%clk 0:00:03.3]} 55...
Kf4 {[%clk 0:00:15.8]} 56. Kh3 {[%clk 0:00:04.2]} 56... g5 {[%clk 0:00:15.5]}
57. Kg2 {[%clk 0:00:04.7]} 57... g4 {[%clk 0:00:15.2]} 58. Kh2 {[%clk
0:00:05.1]} 58... h4 {[%clk 0:00:15.9]} 59. Kg2 {[%clk 0:00:06]} 59... h3+
{[%clk 0:00:14.9]} 60. Kh2 {[%clk 0:00:06.9]} 60... Kf3 {[%clk 0:00:15.1]} 61.
Kg1 {[%clk 0:00:07.7]} 61... g3 {[%clk 0:00:13.8]} 62. Kh1 {[%clk 0:00:08.6]}
62... g2+ {[%clk 0:00:14]} 63. Kh2 {[%clk 0:00:08.2]} 63... Kf2 {[%clk 0:00:14]}
64. Kxh3 {[%clk 0:00:07.7]} 64... g1=Q {[%clk 0:00:14.9]} 0-1

[Event "Late-Titled-Tuesday-Blitz-June-18-2024"]
[Site "Chess.com"]
[Date "2024.06.18"]
[Round "3"]
[White "ChristopherYoo"]
[Black "NMJeevanK"]
[Result "1-0"]
[WhiteElo "3006"]
[BlackElo "2712"]
[TimeControl "180+1"]
[EndTime "14:30:23 PDT"]
[Termination "ChristopherYoo won by resignation"]

1. e4 {[%clk 0:03:00.9]} 1... e5 {[%clk 0:02:59.5]} 2. Nf3 {[%clk 0:03:01]} 2...
Nc6 {[%clk 0:03:00.2]} 3. Bb5 {[%clk 0:03:00.2]} 3... a6 {[%clk 0:03:00.4]} 4.
Ba4 {[%clk 0:03:00.4]} 4... b5 {[%clk 0:03:01.1]} 5. Bb3 {[%clk 0:03:00.4]} 5...
Na5 {[%clk 0:03:01.8]} 6. O-O {[%clk 0:02:55.6]} 6... d6 {[%clk 0:03:01.6]} 7.
d4 {[%clk 0:02:54.9]} 7... exd4 {[%clk 0:03:02.5]} 8. Nxd4 {[%clk 0:02:54.3]}
8... Bb7 {[%clk 0:03:03.1]} 9. Bd5 {[%clk 0:02:37.5]} 9... c6 {[%clk 0:02:57.6]}
10. Re1 {[%clk 0:02:37.4]} 10... Nf6 {[%clk 0:02:27.9]} 11. Nc3 {[%clk
0:01:26.2]} 11... Be7 {[%clk 0:02:23.6]} 12. Nf5 {[%clk 0:01:23.3]} 12... O-O
{[%clk 0:02:20.7]} 13. Bb3 {[%clk 0:01:20.9]} 13... Re8 {[%clk 0:02:14.1]} 14.
Bg5 {[%clk 0:01:19.9]} 14... Bc8 {[%clk 0:02:05.8]} 15. Nxe7+ {[%clk 0:01:11]}
15... Qxe7 {[%clk 0:02:06.7]} 16. e5 {[%clk 0:01:02.6]} 16... dxe5 {[%clk
0:01:56.5]} 17. Ne4 {[%clk 0:01:02.3]} 17... Bf5 {[%clk 0:01:54.2]} 18. Nd6
{[%clk 0:00:57.7]} 18... Nxb3 {[%clk 0:01:46.1]} 19. Nxf5 {[%clk 0:00:48.9]}
19... Qe6 {[%clk 0:01:38.1]} 20. Nxg7 {[%clk 0:00:48.8]} 20... Kxg7 {[%clk
0:01:34.6]} 21. axb3 {[%clk 0:00:48.9]} 21... Qf5 {[%clk 0:01:19]} 22. Re3
{[%clk 0:00:34.9]} 22... Nd5 {[%clk 0:01:07.1]} 23. Rf3 {[%clk 0:00:29.8]} 23...
Qe6 {[%clk 0:01:04.7]} 24. c4 {[%clk 0:00:24.2]} 24... Nf4 {[%clk 0:00:45.7]}
25. Bxf4 {[%clk 0:00:23.6]} 25... exf4 {[%clk 0:00:46.6]} 26. Rxf4 {[%clk
0:00:24.1]} 26... Rad8 {[%clk 0:00:43.7]} 27. Qg4+ {[%clk 0:00:22.8]} 27... Qxg4
{[%clk 0:00:43.9]} 28. Rxg4+ {[%clk 0:00:23.7]} 28... Kf6 {[%clk 0:00:44.4]} 29.
Rf4+ {[%clk 0:00:23.4]} 29... Kg7 {[%clk 0:00:43.2]} 30. g3 {[%clk 0:00:23.4]}
30... Re2 {[%clk 0:00:37.1]} 31. Rxa6 {[%clk 0:00:23.1]} 31... Rxb2 {[%clk
0:00:37.1]} 32. Ra7 {[%clk 0:00:20]} 32... Rf8 {[%clk 0:00:34.8]} 33. cxb5
{[%clk 0:00:20.1]} 33... cxb5 {[%clk 0:00:33.3]} 34. b4 {[%clk 0:00:20.8]} 34...
Re2 {[%clk 0:00:16]} 35. Rf5 {[%clk 0:00:19.9]} 35... Kg6 {[%clk 0:00:14.7]} 36.
Rxb5 {[%clk 0:00:18.3]} 36... Rd8 {[%clk 0:00:15.6]} 37. Ra3 {[%clk 0:00:16]}
37... Rd1+ {[%clk 0:00:10.9]} 38. Kg2 {[%clk 0:00:15.9]} 38... Ree1 {[%clk
0:00:11]} 39. Rb6+ {[%clk 0:00:13.6]} 39... Kg7 {[%clk 0:00:10.8]} 40. Rf3
{[%clk 0:00:11.9]} 40... Rg1+ {[%clk 0:00:10.5]} 41. Kh3 {[%clk 0:00:11.8]}
41... Rd7 {[%clk 0:00:08.8]} 42. Rb5 {[%clk 0:00:09.4]} 42... Rb1 {[%clk
0:00:08.9]} 43. Rg5+ {[%clk 0:00:08.9]} 43... Kf8 {[%clk 0:00:09.1]} 44. Rf4
{[%clk 0:00:08.8]} 44... Rb2 {[%clk 0:00:08]} 45. Rh5 {[%clk 0:00:08.4]} 45...
Kg7 {[%clk 0:00:07.8]} 46. Rg4+ {[%clk 0:00:07.8]} 46... Kf6 {[%clk 0:00:08.3]}
47. Kg2 {[%clk 0:00:04.8]} 47... Rb7 {[%clk 0:00:07.9]} 48. Rxh7 {[%clk
0:00:04.3]} 48... R7xb4 {[%clk 0:00:08.2]} 49. Rxb4 {[%clk 0:00:04.4]} 49...
Rxb4 {[%clk 0:00:09.1]} 50. Rh6+ {[%clk 0:00:03.6]} 50... Kg5 {[%clk 0:00:08.9]}
51. Ra6 {[%clk 0:00:04.3]} 51... f5 {[%clk 0:00:09.2]} 52. f4+ {[%clk
0:00:03.7]} 52... Kh5 {[%clk 0:00:08.7]} 53. Rf6 {[%clk 0:00:04.2]} 53... Rb5
{[%clk 0:00:08.7]} 54. Kh3 {[%clk 0:00:04.1]} 54... Ra5 {[%clk 0:00:09.1]} 55.
Rxf5+ {[%clk 0:00:03.5]} 55... Rxf5 {[%clk 0:00:09.1]} 56. g4+ {[%clk
0:00:04.2]} 56... Kg6 {[%clk 0:00:10]} 57. gxf5+ {[%clk 0:00:04.8]} 57... Kxf5
{[%clk 0:00:10.9]} 58. Kg3 {[%clk 0:00:05.4]} 58... Kf6 {[%clk 0:00:11.6]} 59.
Kg4 {[%clk 0:00:05.8]} 59... Kg6 {[%clk 0:00:12.5]} 60. f5+ {[%clk 0:00:06.3]}
60... Kf6 {[%clk 0:00:13.4]} 61. h4 {[%clk 0:00:06.7]} 61... Kf7 {[%clk
0:00:14.3]} 62. Kg5 {[%clk 0:00:07.4]} 62... Kg7 {[%clk 0:00:15.2]} 63. h5
{[%clk 0:00:08.1]} 63... Kh8 {[%clk 0:00:16.1]} 64. Kg6 {[%clk 0:00:08.1]} 64...
Kg8 {[%clk 0:00:16.3]} 65. h6 {[%clk 0:00:08.4]} 65... Kh8 {[%clk 0:00:17.2]}
66. f6 {[%clk 0:00:08.6]} 66... Kg8 {[%clk 0:00:17.9]} 67. f7+ {[%clk
0:00:08.7]} 67... Kf8 {[%clk 0:00:18.8]} 68. h7 {[%clk 0:00:09.2]} 68... Ke7
{[%clk 0:00:19.1]} 69. h8=Q {[%clk 0:00:09.6]} 1-0

[Event "Late-Titled-Tuesday-Blitz-June-18-2024"]
[Site "Chess.com"]
[Date "2024.06.18"]
[Round "3"]
[White "Pitomina"]
[Black "Evan_Attaker"]
[Result "0-1"]
[WhiteElo "2498"]
[BlackElo "2743"]
[TimeControl "180+1"]
[EndTime "14:30:28 PDT"]
[Termination "Evan_Attaker won by resignation"]

1. g4 {[%clk 0:02:45.9]} 1... d6 {[%clk 0:02:53.4]} 2. h3 {[%clk 0:02:25]} 2...
h5 {[%clk 0:02:50.2]} 3. g5 {[%clk 0:02:24.9]} 3... h4 {[%clk 0:02:48.4]} 4. Bg2
{[%clk 0:02:21.9]} 4... e5 {[%clk 0:02:46.6]} 5. d3 {[%clk 0:02:22]} 5... Ne7
{[%clk 0:02:42.9]} 6. c4 {[%clk 0:02:17.2]} 6... Nbc6 {[%clk 0:02:38.5]} 7. Nc3
{[%clk 0:02:14.2]} 7... Ng6 {[%clk 0:02:35.3]} 8. Nd5 {[%clk 0:02:02.6]} 8...
Be6 {[%clk 0:02:28.6]} 9. Be3 {[%clk 0:01:53.6]} 9... Nd4 {[%clk 0:02:20]} 10.
Nf3 {[%clk 0:01:44.5]} 10... c6 {[%clk 0:02:13.9]} 11. Nc3 {[%clk 0:01:41.2]}
11... Nxf3+ {[%clk 0:02:10.3]} 12. Bxf3 {[%clk 0:01:42.1]} 12... Be7 {[%clk
0:02:09.2]} 13. Qd2 {[%clk 0:01:24.9]} 13... Qd7 {[%clk 0:02:06.5]} 14. Bg2
{[%clk 0:01:19.6]} 14... d5 {[%clk 0:01:58.6]} 15. cxd5 {[%clk 0:01:18.8]} 15...
cxd5 {[%clk 0:01:59.2]} 16. d4 {[%clk 0:01:18.8]} 16... e4 {[%clk 0:01:57.5]}
17. O-O-O {[%clk 0:01:15.2]} 17... Rc8 {[%clk 0:01:55.3]} 18. Kb1 {[%clk
0:01:14.5]} 18... a6 {[%clk 0:01:52.5]} 19. Rc1 {[%clk 0:01:14.1]} 19... b5
{[%clk 0:01:48.5]} 20. a3 {[%clk 0:00:59]} 20... O-O {[%clk 0:01:36.3]} 21. Na2
{[%clk 0:00:53.6]} 21... Rxc1+ {[%clk 0:01:25.5]} 22. Nxc1 {[%clk 0:00:54.5]}
22... Rc8 {[%clk 0:01:24.4]} 23. Nb3 {[%clk 0:00:54.6]} 23... Rc7 {[%clk
0:01:20.2]} 24. Nc5 {[%clk 0:00:54.6]} 24... Bxc5 {[%clk 0:01:11.4]} 25. dxc5
{[%clk 0:00:55.5]} 25... Ne5 {[%clk 0:01:11]} 26. Qd4 {[%clk 0:00:50.6]} 26...
Nc4 {[%clk 0:01:09.2]} 27. Bc1 {[%clk 0:00:47.5]} 27... b4 {[%clk 0:01:06.9]}
28. axb4 {[%clk 0:00:42.6]} 28... Qa4 {[%clk 0:01:05.4]} 29. Qc3 {[%clk
0:00:37.7]} 29... d4 {[%clk 0:00:55.1]} 30. Qxd4 {[%clk 0:00:24.7]} 30... Qb3
{[%clk 0:00:51.3]} 31. Qd8+ {[%clk 0:00:24.4]} 31... Kh7 {[%clk 0:00:50.9]} 32.
Bxe4+ {[%clk 0:00:25]} 32... g6 {[%clk 0:00:50.3]} 33. Bxg6+ {[%clk 0:00:20.7]}
33... Kxg6 {[%clk 0:00:50.9]} 34. Qd3+ {[%clk 0:00:20.9]} 34... Qxd3+ {[%clk
0:00:50]} 35. exd3 {[%clk 0:00:21.8]} 35... Ne5 {[%clk 0:00:44.7]} 36. Bf4
{[%clk 0:00:22]} 36... Kf5 {[%clk 0:00:45]} 37. Bh2 {[%clk 0:00:17.6]} 37... Rd7
{[%clk 0:00:43.1]} 38. c6 {[%clk 0:00:11]} 38... Nxc6 {[%clk 0:00:42.6]} 39. Rc1
{[%clk 0:00:09.5]} 39... Nxb4 {[%clk 0:00:41.6]} 40. Rc5+ {[%clk 0:00:09.6]}
40... Rd5 {[%clk 0:00:41.1]} 41. Rc4 {[%clk 0:00:06.1]} 41... Nxd3 {[%clk
0:00:36.4]} 42. Rxh4 {[%clk 0:00:06.1]} 42... Kxg5 {[%clk 0:00:36]} 43. Rh8
{[%clk 0:00:03.9]} 43... Nb4 {[%clk 0:00:30.6]} 44. Kc1 {[%clk 0:00:02.9]} 44...
Nd3+ {[%clk 0:00:26.5]} 45. Kd2 {[%clk 0:00:02.9]} 45... Nxf2+ {[%clk
0:00:24.9]} 46. Ke3 {[%clk 0:00:03.3]} 46... Nxh3 {[%clk 0:00:25.4]} 47. Bg3
{[%clk 0:00:02.4]} 47... Kg6 {[%clk 0:00:23.3]} 48. Rh4 {[%clk 0:00:01.9]} 48...
Ng5 {[%clk 0:00:22.7]} 49. Ra4 {[%clk 0:00:01.5]} 49... Rb5 {[%clk 0:00:20.9]}
50. Rxa6 {[%clk 0:00:01.5]} 50... Rb3+ {[%clk 0:00:21.5]} 51. Kf2 {[%clk
0:00:01.1]} 51... Rxb2+ {[%clk 0:00:20.9]} 52. Ke3 {[%clk 0:00:01.3]} 52... Rb3+
{[%clk 0:00:20.6]} 53. Kf2 {[%clk 0:00:01.9]} 53... Ne4+ {[%clk 0:00:20.4]} 54.
Kf1 {[%clk 0:00:02.4]} 54... Rxg3 {[%clk 0:00:20.8]} 55. Ra4 {[%clk 0:00:02]}
55... Bf5 {[%clk 0:00:20.2]} 56. Ra6+ {[%clk 0:00:02.1]} 56... Kg5 {[%clk
0:00:20.7]} 57. Ra8 {[%clk 0:00:01.9]} 57... Kf4 {[%clk 0:00:21]} 58. Ra2 {[%clk
0:00:01.6]} 58... Rb3 {[%clk 0:00:21]} 59. Kg2 {[%clk 0:00:01]} 59... Kg4 {[%clk
0:00:20.8]} 60. Kh2 {[%clk 0:00:01.5]} 60... Ng5 {[%clk 0:00:20.9]} 61. Rg2+
{[%clk 0:00:02.4]} 61... Kh4 {[%clk 0:00:21.3]} 62. Rxg5 {[%clk 0:00:02.7]}
62... Kxg5 {[%clk 0:00:20.6]} 0-1